fUSD/lending_fUSD_20260122
["ID","MTS","AMOUNT","RATE_DAILY","PERIOD"]
[403006245,1769046632732,-500.0,0.00017999,2]
[403006246,1769046632741,-500.0,0.00017999,2]
[403006247,1769046632750,-500.0,0.00017999,2]
[403006248,1769046632759,-500.0,0.00017999,2]
[403006249,1769046632768,-500.0,0.00017999,2]
[403006250,1769046632778,-500.0,0.00017999,2]
[403006251,1769046632787,-500.0,0.00017999,2]
[403006252,1769046632795,-500.0,0.00017999,2]
[403006253,1769046632805,-500.0,0.00017999,2]
[403006254,1769046632814,-500.0,0.00017999,2]
[403006255,1769046632824,-500.0,0.00017999,2]
[403006256,1769046632833,-500.0,0.00017999,2]
[403006257,1769046632842,-635.47701852,0.00017999,2]
[403006258,1769046632851,-500.0,0.00017999,2]
[403006259,1769046632859,-500.0,0.00017999,2]
[403006260,1769046632868,-500.0,0.00017999,2]
[403006261,1769046632877,-500.0,0.00017999,2]
[403006262,1769046632886,-500.0,0.00017999,2]
[403006263,1769046632895,-500.0,0.00017999,2]
[403006264,1769046632905,-500.0,0.00017999,2]
[403006265,1769046632915,-500.0,0.00017999,2]
[403006266,1769046632924,-500.0,0.00017999,2]
[403006267,1769046632934,-500.0,0.00017999,2]
[403006268,1769046633116,-500.0,0.00017999,2]
[403006269,1769046633126,-500.0,0.00017999,2]
[403006270,1769046633135,-500.0,0.00017999,2]
[403006271,1769046633144,-399.2213679,0.00017999,2]
[403006272,1769046633153,-500.0,0.00017999,2]
[403006273,1769046633162,-500.0,0.00017999,2]
[403006274,1769046633171,-500.0,0.00017999,2]
[403006275,1769046633180,-500.0,0.00017999,2]
[403006276,1769046633189,-500.0,0.00017999,2]
[403006277,1769046633198,-500.0,0.00017999,2]
[403006278,1769046633207,-500.0,0.00017999,2]
[403006279,1769046633216,-500.0,0.00017999,2]
[403006280,1769046633226,-500.0,0.00017999,2]
[403006281,1769046633235,-500.0,0.00017999,2]
[403006282,1769046633244,-500.0,0.00017999,2]
[403006283,1769046633253,-500.0,0.00017999,2]
[403006284,1769046633262,-500.0,0.00017999,2]
[403006285,1769046633271,-500.0,0.00017999,2]
[403006286,1769046633280,-500.0,0.00017999,2]
[403006287,1769046633289,-500.0,0.00017999,2]
[403006288,1769046633298,-500.0,0.00017999,2]
[403006289,1769046633307,-500.0,0.00017999,2]
[403006290,1769046633316,-500.0,0.00017999,2]
[403006291,1769046633325,-500.0,0.00017999,2]
[403006292,1769046633334,-500.0,0.00017999,2]
[403006293,1769046633343,-500.0,0.00017999,2]
[403006294,1769046633352,-500.0,0.00017999,2]
[403006295,1769046633361,-933014.50862187,0.00018,2]
[403006296,1769046633371,-200.0,0.00018,2]
[403006297,1769046633379,-966.5553838,0.00018041,2]
[403006298,1769046633388,-2000.0,0.00018041,2]
[403006299,1769046633397,-1551.2788373,0.00018041,2]
[403006300,1769046633407,-550.17284175,0.00018273,2]
[403006301,1769046633417,-202.12,0.00018273,2]
[403006302,1769046633427,-202.13391009,0.00018547,2]
[403006303,1769046633437,-814.0,0.00019078,2]
[403006304,1769046633447,-150.00089812,0.00019082,6]
[403006305,1769046633455,-500.0,0.00019178,2]
[403006306,1769046633465,-500.0,0.00019178,2]
[403006307,1769046633475,-355.26600897,0.00019178,2]
[403006308,1769046633484,-500.0,0.00019178,2]
[403006309,1769046633494,-500.0,0.00019178,2]
[403006310,1769046633505,-635.0,0.000196,2]
[403006311,1769046633515,-230.0,0.00019638,2]
[403006312,1769046633524,-708.58,0.0001987,2]
[403006313,1769046633534,-150.00089812,0.00020358,10]
[403006314,1769046633543,-389.28274189,0.00020421,2]
[403006315,1769046633553,-2356.24137362,0.00020679,2]
[403006316,1769046633562,-219.7,0.00020837,2]
[403006317,1769046633572,-6801.66,0.00020951,2]
[403006318,1769046633581,-2099.17,0.00020951,2]
[403006319,1769046633590,-9801.6,0.00020951,2]
[403006320,1769046633600,-150.99,0.00020951,2]
[403006321,1769046633612,-500.0,0.00021,2]
[403006322,1769046633621,-500.0,0.00021,2]
[403006323,1769046633630,-150.00089812,0.00021633,14]
[403006324,1769046633640,-250.0,0.00021999,2]
[403006325,1769046633651,-153.89,0.00022,7]
[403006326,1769046633660,-917.73923535,0.00022,2]
[403006327,1769046633669,-200.0,0.00022122,2]
[403006328,1769046633681,-219.7,0.00022207,2]
[403006329,1769046633690,-708.58,0.00022354,2]
[403006330,1769046633700,-150.00089812,0.00022909,18]
[403006331,1769046633709,-2356.24137362,0.00023458,2]
[403006332,1769046633718,-150.00089812,0.00024184,22]
[403006333,1769046633728,-200.0,0.00024235,2]
[403006334,1769046633737,-345.37428768,0.000248,2]
[403006335,1769046633746,-708.58,0.00024838,120]
[403006336,1769046633756,-324.86323647,0.000249,2]
[403006337,1769046633765,-150.00089812,0.0002546,27]
[403006338,1769046633774,-2356.24137362,0.00026238,2]
[403006339,1769046633783,-200.0,0.00026348,2]
[403006340,1769046633792,-150.00089812,0.00026735,31]
[403006341,1769046633802,-708.58,0.00027322,120]
[403006342,1769046633811,-150.00089812,0.00028011,34]
[403006343,1769046633822,-160.39,0.00028084,2]
[403006344,1769046633832,-200.0,0.00028462,2]
[403006345,1769046633841,-3311.0,0.000288,5]
[403006346,1769046633850,-2356.24137362,0.00029017,2]
[403006347,1769046633860,-150.00089812,0.00029286,38]
[403006348,1769046633870,-708.58,0.00029805,120]
[403006349,1769046633879,-1000.0,0.00030089,2]
[403006350,1769046633890,-320.22686968,0.00030399,28]
[403006351,1769046633901,-150.00089812,0.00030561,42]
[403006352,1769046633910,-200.0,0.00030575,2]
[403006353,1769046633920,-564.91815582,0.00030899,28]
[403006354,1769046633930,-845.08377558,0.00030899,28]
[403006355,1769046633939,-1143.4203,0.00030899,28]
[403006356,1769046633948,-282.0,0.00031654,2]
[403006357,1769046633957,-164.51,0.00031723,2]
[403006358,1769046633966,-2356.24137362,0.00031796,2]
[403006359,1769046633976,-150.00089812,0.00031837,45]
[403006360,1769046633986,-5896.0,0.0003196,5]
[403006361,1769046633996,-160.39,0.0003265,2]
[403006362,1769046634007,-200.0,0.00032689,2]
[403006363,1769046634016,-200.0,0.00032741,2]
[403006364,1769046634026,-282.0,0.00032841,2]
[403006365,1769046634035,-1338.686,0.00032979,2]
[403006366,1769046634045,-1414.081,0.00032979,2]
[403006367,1769046634055,-3491.086,0.00032979,2]
[403006368,1769046634065,-618.268,0.00032979,2]
[403006369,1769046634074,-1268.0,0.00032979,2]
[403006370,1769046634083,-343.516,0.00032979,2]
[403006371,1769046634093,-1207.083,0.00032979,2]
[403006372,1769046634102,-213.0,0.00032979,2]
[403006373,1769046634111,-567.0,0.00032979,2]
[403006374,1769046634120,-150.201,0.00032979,2]
[403006375,1769046634129,-2457.764,0.00032979,2]
[403006376,1769046634138,-167.0,0.00033,14]
[403006377,1769046634147,-150.00089812,0.00033112,49]
[403006378,1769046634156,-150.0,0.00033673,2]
[403006379,1769046634165,-153.89,0.000337,14]
[403006380,1769046634174,-1000.0,0.0003385,2]
[403006381,1769046634183,-282.0,0.00034028,2]
[403006382,1769046634193,-150.00089812,0.00034388,53]
[403006383,1769046634202,-167.0,0.00034521,30]
[403006384,1769046634213,-155.92,0.00034546,30]
[403006385,1769046634222,-2356.24137362,0.00034575,2]
[403006386,1769046634231,-165.99,0.00034693,2]
[403006387,1769046634240,-200.0,0.00034802,2]
[403006388,1769046634249,-282.0,0.00035215,2]
[403006389,1769046634258,-261.611,0.0003522,30]
[403006390,1769046634268,-168.0,0.00035436,2]
[403006391,1769046634277,-300.18,0.00035507,24]
[403006392,1769046634287,-340.19602745,0.00035663,2]
[403006393,1769046634298,-150.0008983,0.00035663,56]
[403006394,1769046634308,-500.0,0.00035726,2]
[403006395,1769046634318,-168.0,0.00035821,2]
[403006396,1769046634327,-5000.0,0.00035942,2]
[403006397,1769046634337,-1332.0,0.00035979,2]
[403006398,1769046634346,-1407.0,0.00035979,2]
[403006399,1769046634355,-3474.0,0.00035979,2]
[403006400,1769046634366,-615.0,0.00035979,2]
[403006401,1769046634378,-787.835,0.00035979,2]
[403006402,1769046634388,-1203.0,0.00035979,2]
[403006403,1769046634397,-567.0,0.00035979,2]
[403006404,1769046634407,-2441.0,0.00035979,2]
[403006405,1769046634417,-193.63,0.00036,120]
[403006406,1769046634427,-168.0,0.00036108,2]
[403006407,1769046634436,-166.66,0.00036265,30]
[403006408,1769046634445,-168.0,0.00036268,2]
[403006409,1769046634455,-168.0,0.00036293,2]
[403006410,1769046634467,-2000.0,0.000364,2]
[403006411,1769046634478,-282.0,0.00036402,2]
[403006412,1769046634487,-1852.42,0.00036523,2]
[403006413,1769046634496,-168.0,0.00036632,2]
[403006414,1769046634505,-169.12,0.000367,10]
[403006415,1769046634514,-340.1960274,0.00036913,2]
[403006416,1769046634523,-200.0,0.00036916,2]
[403006417,1769046634532,-157.0319772,0.00036939,60]
[403006418,1769046634542,-1500.0,0.00037,7]
[403006419,1769046634551,-166.66,0.00037028,30]
[403006420,1769046634561,-467.15,0.00037029,120]
[403006421,1769046634570,-153.89,0.000371,14]
[403006422,1769046634579,-182.25059229,0.000372,120]
[403006423,1769046634588,-160.39,0.00037216,2]
[403006424,1769046634602,-200.0,0.00037224,2]
[403006425,1769046634612,-2356.24137362,0.00037355,2]
[403006426,1769046634621,-154.13,0.00037454,91]
[403006427,1769046634630,-168.0,0.00037456,2]
[403006428,1769046634641,-152.0,0.00037564,7]
[403006429,1769046634651,-152.0,0.00037564,7]
[403006430,1769046634660,-1000.0,0.00037611,2]
[403006431,1769046634671,-168.0,0.00037626,2]
[403006432,1769046634680,-309.0,0.000377,2]
[403006433,1769046634689,-984.0,0.000377,2]
[403006434,1769046634698,-166.66,0.00037792,30]
[403006435,1769046634707,-168.0,0.00037845,2]
[403006436,1769046634716,-340.1960274,0.00038162,2]
[403006437,1769046634726,-157.0319772,0.00038214,64]
[403006438,1769046634735,-315.0,0.00038247,30]
[403006439,1769046634745,-500.0,0.0003843,2]
[403006440,1769046634754,-180.0,0.00038495,20]
[403006441,1769046634764,-166.66,0.00038555,30]
[403006442,1769046634773,-151.0,0.00038697,14]
[403006443,1769046634782,-78726.7540655,0.000387,3]
[403006444,1769046634790,-200.0,0.00038777,20]
[403006445,1769046634799,-1700.0,0.000389,14]
[403006446,1769046634809,-478.62497376,0.00038908,2]
[403006447,1769046634818,-151.46,0.00038908,2]
[403006448,1769046634827,-300.0,0.00038918,2]
[403006449,1769046634836,-850.48650463,0.00038918,2]
[403006450,1769046634845,-304.23239932,0.00038918,2]
[403006451,1769046634854,-579.48942375,0.00038918,2]
[403006452,1769046634864,-300.0,0.00038918,2]
[403006453,1769046634873,-305.40833228,0.00038918,2]
[403006454,1769046634882,-300.0,0.00038918,2]
[403006455,1769046634893,-456.00338787,0.00038918,2]
[403006456,1769046634902,-300.0,0.00038918,2]
[403006457,1769046634912,-339.37981541,0.00038918,2]
[403006458,1769046634922,-1075.48337091,0.00038918,2]
[403006459,1769046634933,-300.0,0.00038918,2]
[403006460,1769046634943,-369.14396502,0.00038918,2]
[403006461,1769046634953,-300.0,0.00038918,2]
[403006462,1769046634962,-388.77136427,0.00038918,2]
[403006463,1769046634971,-300.0,0.00038918,2]
[403006464,1769046634980,-515.44314342,0.00038918,2]
[403006465,1769046634989,-304.38145112,0.00038918,2]
[403006466,1769046635000,-300.0,0.00038918,2]
[403006467,1769046635009,-300.0,0.00038918,2]
[403006468,1769046635020,-300.0,0.00038918,2]
[403006469,1769046635029,-850.48650463,0.00038918,2]
[403006470,1769046635038,-304.23239932,0.00038918,2]
[403006471,1769046635047,-490.7722725,0.00038918,2]
[403006472,1769046635657,-88.71715125,0.00038918,2]
[403006473,1769046635667,-300.0,0.00038918,2]
[403006474,1769046635679,-245.09120724,0.00038918,2]
[403006475,1769046635690,-60.31712504,0.00038918,2]
[403006476,1769046635700,-300.0,0.00038918,2]
[403006477,1769046635709,-52.46015565,0.00038918,2]
[403006478,1769046635817,-403.54323222,0.00038918,2]
[403006479,1769046635827,-300.0,0.00038918,2]
[403006480,1769046635836,-334.66145296,0.00038918,2]
[403006481,1769046635849,-740.82191795,0.00038918,2]
[403006482,1769046635858,-300.0,0.00038918,2]
[403006483,1769046635868,-90.84631731,0.00038918,2]
[403006484,1769046635880,-278.29764771,0.00038918,2]
[403006485,1769046635889,-300.0,0.00038918,2]
[403006486,1769046635899,-300.0,0.00038918,2]
[403006487,1769046635907,-515.44314342,0.00038918,2]
[403006488,1769046635918,-304.38145112,0.00038918,2]
[403006489,1769046635927,-299.87775775,0.00038918,2]
[403006490,1769046635938,-0.12224225,0.00038918,2]
[403006491,1769046635947,-300.0,0.00038918,2]
[403006492,1769046635956,-197.43003866,0.00038918,2]
[403006495,1769046637968,-794.29635751,0.00032979,2]
[403006496,1769046638018,-3349.6,0.00032979,2]
[403006499,1769046638349,-1692.79123998,0.00032979,2]
[403006500,1769046638365,-728.31240251,0.00032979,2]
[403006501,1769046638374,-642.40366549,0.00035979,2]
[403006502,1769046638385,-3256.97143506,0.00035979,2]
[403006503,1769046638396,-2665.62489945,0.00035979,2]
[403006504,1769046638407,-102.56996134,0.00038918,2]
[403006505,1769046638416,-850.64719779,0.00038918,2]
[403006506,1769046638425,-304.29258002,0.00038918,2]
[403006507,1769046638434,-579.60656996,0.00038918,2]
[403006508,1769046638444,-364.95879144,0.00038918,2]
[403006509,1769046638455,-6.04513282,0.00038918,2]
[403006510,1769046638464,-305.467583,0.00038918,2]
[403006511,1769046638473,-300.0,0.00038918,2]
[403006512,1769046638483,-456.09127569,0.00038918,2]
[403006513,1769046638493,-300.0,0.00038918,2]
[403006514,1769046638502,-1075.69065222,0.00038918,2]
[403006515,1769046638512,-226.70538964,0.00038918,2]
[403006516,1769046638539,-73.29461036,0.00038918,2]
[403006517,1769046638548,-369.21511102,0.00038918,2]
[403006518,1769046638558,-300.0,0.00038918,2]
[403006519,1769046638570,-487.79881687,0.00038918,2]
[403006520,1769046638579,-167.8761298,0.00038918,2]
[403006521,1769046638591,-347.66990325,0.00038918,2]
[403006522,1769046638602,-304.44072025,0.00038918,2]
[403006523,1769046638613,-397.8893765,0.00038918,2]
[403006524,1769046638624,-133.11551213,0.00038918,2]
[403006525,1769046638636,-500.1272001,0.00038918,2]
[403006526,1769046638645,-300.0,0.00038918,2]
[403006527,1769046638655,-850.64719779,0.00038918,2]
[403006528,1769046638664,-304.29258002,0.00038918,2]
[403006529,1769046638674,-579.60656996,0.00038918,2]
[403006530,1769046638684,-305.467583,0.00038918,2]
[403006531,1769046638694,-300.0,0.00038918,2]
[403006532,1769046638704,-456.09127569,0.00038918,2]
[403006533,1769046638713,-300.0,0.00038918,2]
[403006534,1769046638723,-1075.69065222,0.00038918,2]
[403006535,1769046638733,-300.0,0.00038918,2]
[403006536,1769046638743,-369.21511102,0.00038918,2]
[403006537,1769046638752,-300.0,0.00038918,2]
[403006538,1769046638762,-515.54603305,0.00038918,2]
[403006539,1769046638772,-304.44072025,0.00038918,2]
[403006540,1769046638781,-1407.0,0.00038979,2]
[403006541,1769046638790,-567.0,0.00038979,2]
[403006542,1769046638799,-6565.0,0.00038979,2]
[403006543,1769046638809,-314.1671519,0.00038999,120]
[403006544,1769046638818,-11652.58572519,0.00039,14]
[403006545,1769046638830,-282.32166366,0.00039,14]
[403006546,1769046638838,-200.0,0.00039029,2]
[403006547,1769046638847,-500.0,0.00039073,5]
[403006548,1769046638857,-159.99649129,0.00039073,5]
[403006549,1769046638866,-500.0,0.00039073,5]
[403006550,1769046638875,-500.0,0.00039073,5]
[403006551,1769046638884,-233.33288012,0.00039274,15]
[403006552,1769046638893,-166.66,0.00039319,30]
[403006553,1769046638902,-1258.15743607,0.00039398,14]
[403006556,1769046640012,-862.91952571,0.00039398,14]
[403006565,1769046643091,-151.0,0.00018369,2]
[403006566,1769046643100,-1169.11830966,0.00039339,14]
[403006567,1769046643109,-282.30757543,0.00039398,14]
[403006568,1769046643118,-132.47118822,0.000394,10]
[403006569,1769046643148,-270.88325251,0.000394,10]
[403006570,1769046643158,-340.1960274,0.00039412,2]
[403006571,1769046643167,-157.0319772,0.0003949,67]
[403006572,1769046643176,-155.92,0.00039593,120]
[403006573,1769046643185,-1000.0,0.00039621,5]
[403006574,1769046643194,-1000.0,0.00039621,5]
[403006575,1769046643204,-1000.0,0.00039621,5]
[403006576,1769046643213,-846.76874289,0.0003988,120]
[403006577,1769046643324,-488.02082031,0.0003988,120]
[403006578,1769046643336,-772.21926914,0.0003988,120]
[403006579,1769046643347,-3455.85415716,0.0003988,120]
[403006580,1769046643358,-1200.0,0.0003988,120]
[403006585,1769046646343,-150.0,0.00032979,2]
[403006586,1769046646352,-368.29215707,0.00032979,2]
[403006587,1769046646363,-1085.30004991,0.00032979,2]
[403006588,1769046646377,-2776.61746563,0.00032979,2]
[403006591,1769046646408,-617.75032739,0.00032979,2]
[403006593,1769046646418,-601.31061627,0.0003988,120]
[403006595,1769046646426,-396.93905634,0.0004,14]
[403006597,1769046646437,-603.06094366,0.0004,14]
[403006599,1769046646446,-500.0,0.0004,60]
[403006601,1769046646455,-209.68741626,0.0004,120]
[403006604,1769046646473,-126.64258374,0.0004,120]
[403006605,1769046646482,-214.58,0.0004,120]
[403006606,1769046646491,-267.93,0.0004,120]
[403006607,1769046646501,-649.48,0.0004,120]
[403006608,1769046646510,-151.13,0.0004,30]
[403006609,1769046646519,-166.66,0.00040082,30]
[403006610,1769046646528,-1511.0,0.000401,2]
[403006611,1769046646538,-190.83869667,0.00040134,15]
[403006612,1769046669718,600.0,0.00019799,120]
[403006613,1769046670038,471.11536396,0.00021348,120]
[403006616,1769046910692,1425.48,0.00016061,2]
[403006617,1769046930679,712.74,0.00016061,2]
[403006619,1769046956306,712.0,0.00016061,2]
[403006625,1769047281066,-250.0,0.00017,2]
[403006628,1769047499047,1651.26,0.00017,2]
[403006630,1769047539026,-254.67620268,0.00017999,2]
[403006643,1769047832104,-300.0,0.00019,2]
[403006644,1769047832114,-87.105,0.00019012,5]
[403006645,1769047832126,-62.90436467,0.00019012,5]
[403006646,1769047832136,-151.0,0.00019505,2]
[403006647,1769047832145,-600.0,0.000196,2]
[403006648,1769047832155,-150.00936467,0.00020246,9]
[403006649,1769047832164,-59.64627066,0.000206,7]
[403006650,1769047832181,-90.35372934,0.000206,7]
[403006651,1769047832190,-150.00936467,0.0002148,13]
[403006652,1769047832200,-150.00936467,0.00022714,18]
[403006658,1769047832436,-4028.96,0.00023851,2]
[403006659,1769047832446,-150.00936467,0.00023948,22]
[403006660,1769047832457,-2349.1849574,0.00023948,2]
[403006661,1769047832466,-305.60310685,0.00024973,2]
[403006662,1769047832476,-150.00936467,0.00025181,26]
[403006663,1769047832485,-350.57642505,0.00025721,2]
[403006664,1769047832496,-150.00936467,0.00026415,30]
[403006665,1769047832506,-150.00936467,0.00027649,33]
[403006666,1769047832516,-150.00936467,0.00028883,37]
[403006667,1769047832526,-231.77,0.000298,14]
[403006668,1769047832535,-204.0,0.0003,120]
[403006669,1769047832544,-150.00936467,0.00030117,40]
[403006670,1769047832553,-150.00936467,0.00031351,44]
[403006671,1769047832562,-170.0,0.00032,120]
[403006672,1769047832570,-304.0,0.000321,5]
[403006673,1769047832580,-150.00936467,0.00032585,47]
[403006674,1769047832589,-304.0,0.00032589,2]
[403006675,1769047832598,-789.13352511,0.00032658,2]
[403006676,1769047832825,-125.86647489,0.00032658,2]
[403006677,1769047832835,-169.0,0.00033,14]
[403006678,1769047832845,-150.00936467,0.00033819,51]
[403006679,1769047832854,-283.45837598,0.00034,2]
[403006680,1769047832891,-1228.60430816,0.00034,2]
[403006681,1769047832901,-3943.05,0.00034075,2]
[403006682,1769047832910,-169.0,0.00034521,30]
[403006683,1769047832920,-166.66,0.00034694,30]
[403006684,1769047832929,-500.0,0.00034888,2]
[403006685,1769047832938,-150.00936467,0.00035053,55]
[403006686,1769047832947,-200.0,0.00035237,2]
[403006687,1769047832958,-166.66,0.00035424,30]
[403006688,1769047832972,-1943.96,0.00035431,2]
[403006689,1769047832981,-535.33653606,0.00035472,42]
[403006690,1769047833001,-2039.48675829,0.00035472,42]
[403006695,1769047838256,-151.0,0.00019488,2]
[403006696,1769047838266,-567.0,0.00032658,2]
[403006697,1769047838278,-622.56770565,0.00035472,42]
[403006698,1769047838288,-247.214,0.00035472,42]
[403006699,1769047838297,-524.156,0.00035658,2]
[403006700,1769047838307,-564.698,0.00035658,2]
[403006701,1769047838316,-200.0,0.00035878,2]
[403006702,1769047838326,-200.0,0.00036,120]
[403006703,1769047838335,-166.66,0.00036154,30]
[403006704,1769047838344,-191.98,0.0003621,2]
[403006705,1769047838354,-150.00936467,0.00036287,58]
[403006706,1769047838363,-149.19022351,0.00036885,30]
[403006707,1769047838375,-17.46977649,0.00036885,30]
[403006708,1769047838384,-150.00936483,0.0003752,62]
[403006709,1769047838394,-260.5,0.00037606,30]
[403006710,1769047838403,-166.66,0.00037615,30]
[403006711,1769047838412,-200.0,0.00038,120]
[403006712,1769047838422,-250.0,0.00038247,30]
[403006713,1769047838431,-166.66,0.00038345,30]
[403006714,1769047838441,-219.45322453,0.00038495,20]
[403006715,1769047838450,-596.93916301,0.00038532,2]
[403006716,1769047838477,-660.75123699,0.00038532,2]
[403006717,1769047838486,-500.0,0.00038631,15]
[403006718,1769047838496,-500.0,0.00038631,15]
[403006719,1769047838505,-500.0,0.00038631,15]
[403006720,1769047838515,-500.0,0.00038631,15]
[403006721,1769047838524,-500.0,0.00038631,15]
[403006722,1769047838534,-500.0,0.00038631,15]
[403006723,1769047838543,-500.0,0.00038631,15]
[403006724,1769047838552,-500.0,0.00038631,15]
[403006725,1769047838562,-500.0,0.00038631,15]
[403006726,1769047838572,-500.0,0.00038631,15]
[403006728,1769047838581,-500.0,0.00038631,15]
[403006730,1769047838590,-500.0,0.00038631,15]
[403006732,1769047838599,-500.0,0.00038631,15]
[403006734,1769047838609,-500.0,0.00038631,15]
[403006736,1769047838618,-500.0,0.00038631,15]
[403006738,1769047838627,-500.0,0.00038631,15]
[403006740,1769047838636,-500.0,0.00038631,15]
[403006741,1769047838646,-500.0,0.00038631,15]
[403006742,1769047838655,-500.0,0.00038631,15]
[403006743,1769047838665,-500.0,0.00038631,15]
[403006744,1769047838674,-500.0,0.00038631,15]
[403006745,1769047838684,-500.0,0.00038631,15]
[403006746,1769047838693,-500.0,0.00038631,15]
[403006747,1769047838703,-500.0,0.00038631,15]
[403006748,1769047838712,-500.0,0.00038631,15]
[403006749,1769047838721,-346.82472971,0.00038631,15]
[403006750,1769047838731,-500.0,0.00038631,15]
[403006751,1769047838741,-500.0,0.00038631,15]
[403006752,1769047838751,-500.0,0.00038631,15]
[403006753,1769047838760,-500.0,0.00038631,15]
[403006754,1769047838770,-500.0,0.00038631,15]
[403006755,1769047838781,-500.0,0.00038631,15]
[403006756,1769047838791,-500.0,0.00038631,15]
[403006757,1769047838800,-500.0,0.00038631,15]
[403006758,1769047838811,-500.0,0.00038631,15]
[403006759,1769047838821,-500.0,0.00038631,15]
[403006760,1769047838831,-500.0,0.00038631,15]
[403006761,1769047838840,-500.0,0.00038631,15]
[403006762,1769047838849,-500.0,0.00038631,15]
[403006763,1769047838859,-500.0,0.00038631,15]
[403006764,1769047838868,-500.0,0.00038631,15]
[403006765,1769047838878,-359.25889732,0.00038631,15]
[403006766,1769047838890,-140.74110268,0.00038631,15]
[403006767,1769047839111,-500.0,0.00038631,15]
[403006768,1769047839120,-188.82991732,0.00038631,15]
[403006770,1769047840260,-306.10710901,0.00038631,15]
[403006771,1769047840270,-222.06300537,0.00038631,30]
[403006772,1769047840279,-623.33477389,0.00038631,30]
[403006773,1769047840292,-492.38905927,0.00038631,30]
[403006774,1769047840302,-8163.61722848,0.00038632,2]
[403006782,1769047840747,-8947.21879473,0.00038632,2]
[403006785,1769047840759,-8943.78386462,0.00038632,2]
[403006787,1769047840770,-9077.54866152,0.00038632,2]
[403006789,1769047840781,-8943.84023489,0.00038632,2]
[403006791,1769047840796,-2310.24529464,0.00038632,2]
[403006794,1769047840806,-840.26622967,0.00038632,2]
[403006796,1769047840821,-1254.3571833,0.00038632,2]
[403006798,1769047840832,-353.47176662,0.00038632,2]
[403006801,1769047840843,-360.42425931,0.00038632,2]
[403006815,1769047840923,-639.48310484,0.00038632,2]
[403006819,1769047840934,-61137.12023558,0.00038632,2]
[403006822,1769047840943,-452.16440512,0.00038649,2]
[403006825,1769047840951,-223.3214493,0.00038754,65]
[403006827,1769047840962,-187.16,0.00038881,2]
[403006830,1769047840972,-300.0,0.00038915,2]
[403006832,1769047840981,-850.64719779,0.00038915,2]
[403006834,1769047840990,-304.29258002,0.00038915,2]
[403006836,1769047840999,-579.60656996,0.00038915,2]
[403006838,1769047841009,-305.467583,0.00038915,2]
[403006840,1769047841017,-300.0,0.00038915,2]
[403006842,1769047841027,-456.09127569,0.00038915,2]
[403006844,1769047841037,-300.0,0.00038915,2]
[403006846,1769047841045,-1075.69065222,0.00038915,2]
[403006848,1769047841055,-300.0,0.00038915,2]
[403006850,1769047841064,-369.21511102,0.00038915,2]
[403006852,1769047841073,-300.0,0.00038915,2]
[403006854,1769047841081,-515.54603305,0.00038915,2]
[403006856,1769047841090,-304.44072025,0.00038915,2]
[403006858,1769047841099,-300.0,0.00038915,2]
[403006860,1769047841107,-850.64719779,0.00038915,2]
[403006861,1769047841117,-304.29258002,0.00038915,2]
[403006863,1769047841125,-579.60656996,0.00038915,2]
[403006865,1769047841134,-305.467583,0.00038915,2]
[403006867,1769047841142,-300.0,0.00038915,2]
[403006869,1769047841151,-456.09127569,0.00038915,2]
[403006871,1769047841159,-300.0,0.00038915,2]
[403006873,1769047841168,-1075.69065222,0.00038915,2]